Workbook

Sheet Seed Calculator (hidden)
A2: . . . . . . . . . . . . . . . . . . . . . . . . . . . . . . . . . . . . . . . . . . . . . . . . . . . . . . . . . . . . . .
A3: MERFELD - Seeding Rate & Seed Cost Calculator | M3: Printed: | O3: =TODAY() -> 2025-05-13
F4: *** Enter changes to BLUE values only *** | P4: Version 1.0
C6: Seed and Treatment | F6: Seed | G6: Seeding | H6: Seeding | I6: Target Plant Stand Population | L6: 1,000 Kernal Weight | N6: Seed | O6: Seed Survival | X6: Seed and Treatment | AA6: Seed | AB6: Seeding | AC6: Seeding | AD6: Target Plant Stand Population | AG6: 1,000 Kernal Weight | AI6: Seed | AJ6: Seed Survival
C7: Price | E7: Number | F7: Cost | G7: Rate | H7: Rate | I7: Plants | J7: Range/ft.2 | K7: Plants | L7: Actual | M7: Range | N7: Germination | O7: Expected | P7: Range | X7: Price | Z7: Pounds | AA7: Cost | AB7: Rate | AC7: Rate | AD7: Optimal | AE7: Range/ft.2 | AF7: Optimal | AG7: Actual | AH7: Range | AI7: Germination | AJ7: Expected | AK7: Range
B8: Crop | C8: per Unit | D8: unit | E8: per unit | F8: ($/acre) | G8: (lb./acre) | H8: (units/ac) | I8: per ft.2 | J8: low - high | K8: per m2 | L8: (grams) | M8: (grams) | N8: % | O8: % | P8: % | W8: Crop | X8: per Unit | Y8: unit | Z8: per unit | AA8: ($/acre) | AB8: (lb./acre) | AC8: (units/ac) | AD8: per ft.2 | AE8: low - high | AF8: per m2 | AG8: (grams) | AH8: (grams) | AI8: % | AJ8: % | AK8: %
A10: #1 | B10: Canola | C10: =VLOOKUP(B10,'DATA (hide)'!$A$4:$Y$30,2,FALSE) -> 825 | D10: =VLOOKUP(B10,'DATA (hide)'!$A$4:$Y$30,3,FALSE) -> Bag | E10: =VLOOKUP(B10,'DATA (hide)'!$A$4:$Y$30,4,FALSE) -> 50 | F10: =G10*(C10/E10) -> 82.5 | G10: =IF(L10=0,0,ROUND(((I10*L10)/(N10*O10))/10.4,1)) -> 5 | H10: =SUM(G10/E10) -> 0.1 | I10: =VLOOKUP(B10,'DATA (hide)'!$A$4:$Y$30,10,FALSE) -> 7.5 | J10: =VLOOKUP(B10,'DATA (hide)'!$A$4:$Y$30,8,FALSE)&"-"&VLOOKUP(B10,'DATA (hide)'!$A$4:$Y$30,9,FALSE) -> 3-12 | K10: =ROUND(I10*10.7639,0) -> 81 | L10: =VLOOKUP(B10,'DATA (hide)'!$A$4:$Y$30,14,FALSE) -> 4.95 | M10: =VLOOKUP(B10,'DATA (hide)'!$A$4:$Y$30,12,FALSE)&"-"&VLOOKUP(B10,'DATA (hide)'!$A$4:$Y$30,13,FALSE) -> 3-7 | N10: =VLOOKUP(B10,'DATA (hide)'!$A$4:$Y$30,15,FALSE) -> 0.95 | O10: =VLOOKUP(B10,'DATA (hide)'!$A$4:$Y$30,18,FALSE) -> 0.75 | P10: =VLOOKUP(B10,'DATA (hide)'!$A$4:$Y$30,16,FALSE)&"-"&VLOOKUP(B10,'DATA (hide)'!$A$4:$Y$30,17,FALSE) -> 40-80 | V10: #1 | W10: (Select Crop) | X10: =VLOOKUP(W10,'DATA (hide)'!$A$4:$Y$30,2,FALSE) -> 0 | Y10: =VLOOKUP(W10,'DATA (hide)'!$A$4:$Y$30,3,FALSE) -> Bu | Z10: =VLOOKUP(W10,'DATA (hide)'!$A$4:$Y$30,4,FALSE) -> 1 | AA10: =AB10*(X10/Z10) -> 0 | AB10: =IF(AG10=0,0,ROUND(((AD10*AG10)/(AI10*AJ10))/10.4,1)) -> 0 | AC10: =SUM(AB10/Z10) -> 0 | AD10: =VLOOKUP(W10,'DATA (hide)'!$A$4:$Y$30,10,FALSE) -> 0 | AE10: =VLOOKUP(W10,'DATA (hide)'!$A$4:$Y$30,8,FALSE)&"-"&VLOOKUP(W10,'DATA (hide)'!$A$4:$Y$30,9,FALSE) -> 0-0 | AF10: =ROUND(AD10*10.7639,0) -> 0 | AG10: =VLOOKUP(W10,'DATA (hide)'!$A$4:$Y$30,14,FALSE) -> 0 | AH10: =VLOOKUP(W10,'DATA (hide)'!$A$4:$Y$30,12,FALSE)&"-"&VLOOKUP(W10,'DATA (hide)'!$A$4:$Y$30,13,FALSE) -> 0-0 | AI10: =VLOOKUP(W10,'DATA (hide)'!$A$4:$Y$30,15,FALSE) -> 0 | AJ10: =VLOOKUP(W10,'DATA (hide)'!$A$4:$Y$30,18,FALSE) -> 0 | AK10: =VLOOKUP(W10,'DATA (hide)'!$A$4:$Y$30,16,FALSE)&"-"&VLOOKUP(W10,'DATA (hide)'!$A$4:$Y$30,17,FALSE) -> 0-0
B12: bigyield | C12: Acres | D12: 160 | F12: Row Spacing (inches) | J12: Seed per 100ft. Row (grams) | K12: =ROUND((G10*F13)/11.5,1) -> 4.3 | M12: Seeds per acre | N12: =IF(I10=0,0,(I10*43560)/(N10*O10)) -> 458526.3158 | W12: (enter variety) | X12: Acres | Y12: 0 | AA12: Row Spacing (inches) | AE12: Seed per 100ft. Row (grams) | AF12: =ROUND((AB10*AA13)/11.5,1) -> 0 | AH12: Seeds per acre | AI12: =IF(AD10=0,0,(AD10*43560)/(AI10*AJ10)) -> 0
C13: Total Cost | D13: =SUM(D12*F10) -> 13200 | F13: 10 | J13: Seeds per ft. row | K13: =IF(L10=0,0,ROUND(((K12/100)*1000)/L10,1)) -> 8.7 | M13: Seeds per pound | N13: =IF(L10=0,0,ROUND((1000*453.592)/L10,0)) -> 91635 | X13: Total Cost | Y13: =SUM(Y12*AA10) -> 0 | AA13: 10 | AE13: Seeds per ft. row | AF13: =IF(AG10=0,0,ROUND(((AF12/100)*1000)/AG10,1)) -> 0 | AH13: Seeds per pound | AI13: =IF(AG10=0,0,ROUND((1000*453.592)/AG10,0)) -> 0
A16: #2 | B16: Wheat - Hard Red Spring | C16: =VLOOKUP(B16,'DATA (hide)'!$A$4:$Y$30,2,FALSE) -> 17 | D16: =VLOOKUP(B16,'DATA (hide)'!$A$4:$Y$30,3,FALSE) -> Bu | E16: =VLOOKUP(B16,'DATA (hide)'!$A$4:$Y$30,4,FALSE) -> 60 | F16: =G16*(C16/E16) -> 34 | G16: =IF(L16=0,0,ROUND(((I16*L16)/(N16*O16))/10.4,1)) -> 120 | H16: =SUM(G16/E16) -> 2 | I16: =VLOOKUP(B16,'DATA (hide)'!$A$4:$Y$30,10,FALSE) -> 28 | J16: =VLOOKUP(B16,'DATA (hide)'!$A$4:$Y$30,8,FALSE)&"-"&VLOOKUP(B16,'DATA (hide)'!$A$4:$Y$30,9,FALSE) -> 23-28 | K16: =ROUND(I16*10.7639,0) -> 301 | L16: =VLOOKUP(B16,'DATA (hide)'!$A$4:$Y$30,14,FALSE) -> 36 | M16: =VLOOKUP(B16,'DATA (hide)'!$A$4:$Y$30,12,FALSE)&"-"&VLOOKUP(B16,'DATA (hide)'!$A$4:$Y$30,13,FALSE) -> 31-38 | N16: =VLOOKUP(B16,'DATA (hide)'!$A$4:$Y$30,15,FALSE) -> 0.95 | O16: =VLOOKUP(B16,'DATA (hide)'!$A$4:$Y$30,18,FALSE) -> 0.85 | P16: =VLOOKUP(B16,'DATA (hide)'!$A$4:$Y$30,16,FALSE)&"-"&VLOOKUP(B16,'DATA (hide)'!$A$4:$Y$30,17,FALSE) -> 85-90 | V16: #2 | W16: (Select Crop) | X16: =VLOOKUP(W16,'DATA (hide)'!$A$4:$Y$30,2,FALSE) -> 0 | Y16: =VLOOKUP(W16,'DATA (hide)'!$A$4:$Y$30,3,FALSE) -> Bu | Z16: =VLOOKUP(W16,'DATA (hide)'!$A$4:$Y$30,4,FALSE) -> 1 | AA16: =AB16*(X16/Z16) -> 0 | AB16: =IF(AG16=0,0,ROUND(((AD16*AG16)/(AI16*AJ16))/10.4,1)) -> 0 | AC16: =SUM(AB16/Z16) -> 0 | AD16: =VLOOKUP(W16,'DATA (hide)'!$A$4:$Y$30,10,FALSE) -> 0 | AE16: =VLOOKUP(W16,'DATA (hide)'!$A$4:$Y$30,8,FALSE)&"-"&VLOOKUP(W16,'DATA (hide)'!$A$4:$Y$30,9,FALSE) -> 0-0 | AF16: =ROUND(AD16*10.7639,0) -> 0 | AG16: =VLOOKUP(W16,'DATA (hide)'!$A$4:$Y$30,14,FALSE) -> 0 | AH16: =VLOOKUP(W16,'DATA (hide)'!$A$4:$Y$30,12,FALSE)&"-"&VLOOKUP(W16,'DATA (hide)'!$A$4:$Y$30,13,FALSE) -> 0-0 | AI16: =VLOOKUP(W16,'DATA (hide)'!$A$4:$Y$30,15,FALSE) -> 0 | AJ16: =VLOOKUP(W16,'DATA (hide)'!$A$4:$Y$30,18,FALSE) -> 0 | AK16: =VLOOKUP(W16,'DATA (hide)'!$A$4:$Y$30,16,FALSE)&"-"&VLOOKUP(W16,'DATA (hide)'!$A$4:$Y$30,17,FALSE) -> 0-0
B18: bigbin | C18: Acres | D18: 160 | F18: Row Spacing (inches) | J18: Seed per 100ft. Row (grams) | K18: =ROUND((G16*F19)/11.5,1) -> 104.3 | M18: Seeds per acre | N18: =IF(I16=0,0,(I16*43560)/(N16*O16)) -> 1510439.628 | W18: (enter variety) | X18: Acres | Y18: 0 | AA18: Row Spacing (inches) | AE18: Seed per 100ft. Row (grams) | AF18: =ROUND((AB16*AA19)/11.5,1) -> 0 | AH18: Seeds per acre | AI18: =IF(AD16=0,0,(AD16*43560)/(AI16*AJ16)) -> 0
C19: Total Cost | D19: =SUM(D18*F16) -> 5440 | F19: 10 | J19: Seeds per ft. row | K19: =IF(L16=0,0,ROUND(((K18/100)*1000)/L16,1)) -> 29 | M19: Seeds per pound | N19: =IF(L16=0,0,ROUND((1000*453.592)/L16,0)) -> 12600 | X19: Total Cost | Y19: =SUM(Y18*AA16) -> 0 | AA19: 10 | AE19: Seeds per ft. row | AF19: =IF(AG16=0,0,ROUND(((AF18/100)*1000)/AG16,1)) -> 0 | AH19: Seeds per pound | AI19: =IF(AG16=0,0,ROUND((1000*453.592)/AG16,0)) -> 0
A22: #3 | B22: Soybeans | C22: =VLOOKUP(B22,'DATA (hide)'!$A$4:$Y$30,2,FALSE) -> 62.94 | D22: =VLOOKUP(B22,'DATA (hide)'!$A$4:$Y$30,3,FALSE) -> Unit | E22: =VLOOKUP(B22,'DATA (hide)'!$A$4:$Y$30,4,FALSE) -> 140000 | F22: =G22*(C22/E22) -> 1296.840666 | G22: =IF(L22=0,0,ROUND(((I22*L22)/(N22*O22))/10.4,1)) -> 2884615.4 | H22: =SUM(G22/E22) -> 20.60439571 | I22: =VLOOKUP(B22,'DATA (hide)'!$A$4:$Y$30,10,FALSE) -> 162000 | J22: =VLOOKUP(B22,'DATA (hide)'!$A$4:$Y$30,8,FALSE)&"-"&VLOOKUP(B22,'DATA (hide)'!$A$4:$Y$30,9,FALSE) -> 150000-200000 | K22: =ROUND(I22*10.7639,0) -> 1743752 | L22: =VLOOKUP(B22,'DATA (hide)'!$A$4:$Y$30,14,FALSE) -> 150 | M22: =VLOOKUP(B22,'DATA (hide)'!$A$4:$Y$30,12,FALSE)&"-"&VLOOKUP(B22,'DATA (hide)'!$A$4:$Y$30,13,FALSE) -> 100-200 | N22: =VLOOKUP(B22,'DATA (hide)'!$A$4:$Y$30,15,FALSE) -> 0.9 | O22: =VLOOKUP(B22,'DATA (hide)'!$A$4:$Y$30,18,FALSE) -> 0.9 | P22: =VLOOKUP(B22,'DATA (hide)'!$A$4:$Y$30,16,FALSE)&"-"&VLOOKUP(B22,'DATA (hide)'!$A$4:$Y$30,17,FALSE) -> 75-80 | V22: #3 | W22: (Select Crop) | X22: =VLOOKUP(W22,'DATA (hide)'!$A$4:$Y$30,2,FALSE) -> 0 | Y22: =VLOOKUP(W22,'DATA (hide)'!$A$4:$Y$30,3,FALSE) -> Bu | Z22: =VLOOKUP(W22,'DATA (hide)'!$A$4:$Y$30,4,FALSE) -> 1 | AA22: =AB22*(X22/Z22) -> 0 | AB22: =IF(AG22=0,0,ROUND(((AD22*AG22)/(AI22*AJ22))/10.4,1)) -> 0 | AC22: =SUM(AB22/Z22) -> 0 | AD22: =VLOOKUP(W22,'DATA (hide)'!$A$4:$Y$30,10,FALSE) -> 0 | AE22: =VLOOKUP(W22,'DATA (hide)'!$A$4:$Y$30,8,FALSE)&"-"&VLOOKUP(W22,'DATA (hide)'!$A$4:$Y$30,9,FALSE) -> 0-0 | AF22: =ROUND(AD22*10.7639,0) -> 0 | AG22: =VLOOKUP(W22,'DATA (hide)'!$A$4:$Y$30,14,FALSE) -> 0 | AH22: =VLOOKUP(W22,'DATA (hide)'!$A$4:$Y$30,12,FALSE)&"-"&VLOOKUP(W22,'DATA (hide)'!$A$4:$Y$30,13,FALSE) -> 0-0 | AI22: =VLOOKUP(W22,'DATA (hide)'!$A$4:$Y$30,15,FALSE) -> 0 | AJ22: =VLOOKUP(W22,'DATA (hide)'!$A$4:$Y$30,18,FALSE) -> 0 | AK22: =VLOOKUP(W22,'DATA (hide)'!$A$4:$Y$30,16,FALSE)&"-"&VLOOKUP(W22,'DATA (hide)'!$A$4:$Y$30,17,FALSE) -> 0-0
B24: ridgeville | C24: Acres | D24: 160 | F24: Row Spacing (inches) | J24: Seed per 100ft. Row (grams) | K24: =ROUND((G22*F25)/11.5,1) -> 2508361.2 | M24: Seeds per acre | N24: =IF(I22=0,0,(I22*43560)/(N22*O22)) -> 8712000000 | W24: (enter variety) | X24: Acres | Y24: 0 | AA24: Row Spacing (inches) | AE24: Seed per 100ft. Row (grams) | AF24: =ROUND((AB22*AA25)/11.5,1) -> 0 | AH24: Seeds per acre | AI24: =IF(AD22=0,0,(AD22*43560)/(AI22*AJ22)) -> 0
C25: Total Cost | D25: =SUM(D24*F22) -> 207494.5066 | F25: 10 | J25: Seeds per ft. row | K25: =IF(L22=0,0,ROUND(((K24/100)*1000)/L22,1)) -> 167224.1 | M25: Seeds per pound | N25: =IF(L22=0,0,ROUND((1000*453.592)/L22,0)) -> 3024 | X25: Total Cost | Y25: =SUM(Y24*AA22) -> 0 | AA25: 10 | AE25: Seeds per ft. row | AF25: =IF(AG22=0,0,ROUND(((AF24/100)*1000)/AG22,1)) -> 0 | AH25: Seeds per pound | AI25: =IF(AG22=0,0,ROUND((1000*453.592)/AG22,0)) -> 0
A28: #4 | B28: Sunflower Confectionary | C28: =VLOOKUP(B28,'DATA (hide)'!$A$4:$Y$30,2,FALSE) -> 500 | D28: =VLOOKUP(B28,'DATA (hide)'!$A$4:$Y$30,3,FALSE) -> Bag | E28: =VLOOKUP(B28,'DATA (hide)'!$A$4:$Y$30,4,FALSE) -> 200000 | F28: =G28*(C28/E28) -> 408.94775 | G28: =IF(L28=0,0,ROUND(((I28*L28)/(N28*O28))/10.4,1)) -> 163579.1 | H28: =SUM(G28/E28) -> 0.8178955 | I28: =VLOOKUP(B28,'DATA (hide)'!$A$4:$Y$30,10,FALSE) -> 16000 | J28: =VLOOKUP(B28,'DATA (hide)'!$A$4:$Y$30,8,FALSE)&"-"&VLOOKUP(B28,'DATA (hide)'!$A$4:$Y$30,9,FALSE) -> 14000-18000 | K28: =ROUND(I28*10.7639,0) -> 172222 | L28: =VLOOKUP(B28,'DATA (hide)'!$A$4:$Y$30,14,FALSE) -> 100 | M28: =VLOOKUP(B28,'DATA (hide)'!$A$4:$Y$30,12,FALSE)&"-"&VLOOKUP(B28,'DATA (hide)'!$A$4:$Y$30,13,FALSE) -> 91-151 | N28: =VLOOKUP(B28,'DATA (hide)'!$A$4:$Y$30,15,FALSE) -> 0.99 | O28: =VLOOKUP(B28,'DATA (hide)'!$A$4:$Y$30,18,FALSE) -> 0.95 | P28: =VLOOKUP(B28,'DATA (hide)'!$A$4:$Y$30,16,FALSE)&"-"&VLOOKUP(B28,'DATA (hide)'!$A$4:$Y$30,17,FALSE) -> 95-99 | V28: #4 | W28: (Select Crop) | X28: =VLOOKUP(W28,'DATA (hide)'!$A$4:$Y$30,2,FALSE) -> 0 | Y28: =VLOOKUP(W28,'DATA (hide)'!$A$4:$Y$30,3,FALSE) -> Bu | Z28: =VLOOKUP(W28,'DATA (hide)'!$A$4:$Y$30,4,FALSE) -> 1 | AA28: =AB28*(X28/Z28) -> 0 | AB28: =IF(AG28=0,0,ROUND(((AD28*AG28)/(AI28*AJ28))/10.4,1)) -> 0 | AC28: =SUM(AB28/Z28) -> 0 | AD28: =VLOOKUP(W28,'DATA (hide)'!$A$4:$Y$30,10,FALSE) -> 0 | AE28: =VLOOKUP(W28,'DATA (hide)'!$A$4:$Y$30,8,FALSE)&"-"&VLOOKUP(W28,'DATA (hide)'!$A$4:$Y$30,9,FALSE) -> 0-0 | AF28: =ROUND(AD28*10.7639,0) -> 0 | AG28: =VLOOKUP(W28,'DATA (hide)'!$A$4:$Y$30,14,FALSE) -> 0 | AH28: =VLOOKUP(W28,'DATA (hide)'!$A$4:$Y$30,12,FALSE)&"-"&VLOOKUP(W28,'DATA (hide)'!$A$4:$Y$30,13,FALSE) -> 0-0 | AI28: =VLOOKUP(W28,'DATA (hide)'!$A$4:$Y$30,15,FALSE) -> 0 | AJ28: =VLOOKUP(W28,'DATA (hide)'!$A$4:$Y$30,18,FALSE) -> 0 | AK28: =VLOOKUP(W28,'DATA (hide)'!$A$4:$Y$30,16,FALSE)&"-"&VLOOKUP(W28,'DATA (hide)'!$A$4:$Y$30,17,FALSE) -> 0-0
B30: (enter variety) | C30: Acres | D30: 80 | F30: Row Spacing (inches) | J30: Seed per 100ft. Row (grams) | K30: =ROUND((G28*F31)/11.5,1) -> 142242.7 | M30: Seeds per acre | N30: =IF(I28=0,0,(I28*43560)/(N28*O28)) -> 741052631.6 | W30: (enter variety) | X30: Acres | Y30: 0 | AA30: Row Spacing (inches) | AE30: Seed per 100ft. Row (grams) | AF30: =ROUND((AB28*AA31)/11.5,1) -> 0 | AH30: Seeds per acre | AI30: =IF(AD28=0,0,(AD28*43560)/(AI28*AJ28)) -> 0
C31: Total Cost | D31: =SUM(D30*F28) -> 32715.82 | F31: 10 | J31: Seeds per ft. row | K31: =IF(L28=0,0,ROUND(((K30/100)*1000)/L28,1)) -> 14224.3 | M31: Seeds per pound | N31: =IF(L28=0,0,ROUND((1000*453.592)/L28,0)) -> 4536 | X31: Total Cost | Y31: =SUM(Y30*AA28) -> 0 | AA31: 10 | AE31: Seeds per ft. row | AF31: =IF(AG28=0,0,ROUND(((AF30/100)*1000)/AG28,1)) -> 0 | AH31: Seeds per pound | AI31: =IF(AG28=0,0,ROUND((1000*453.592)/AG28,0)) -> 0
A34: #5 | B34: Corn - Grain | C34: =VLOOKUP(B34,'DATA (hide)'!$A$4:$Y$30,2,FALSE) -> 250 | D34: =VLOOKUP(B34,'DATA (hide)'!$A$4:$Y$30,3,FALSE) -> Bag | E34: =VLOOKUP(B34,'DATA (hide)'!$A$4:$Y$30,4,FALSE) -> 80000 | F34: =G34*(C34/E34) -> 3365.50625 | G34: =IF(L34=0,0,ROUND(((I34*L34)/(N34*O34))/10.4,1)) -> 1076962 | H34: =SUM(G34/E34) -> 13.462025 | I34: =VLOOKUP(B34,'DATA (hide)'!$A$4:$Y$30,10,FALSE) -> 31000 | J34: =VLOOKUP(B34,'DATA (hide)'!$A$4:$Y$30,8,FALSE)&"-"&VLOOKUP(B34,'DATA (hide)'!$A$4:$Y$30,9,FALSE) -> 30000-36000 | K34: =ROUND(I34*10.7639,0) -> 333681 | L34: =VLOOKUP(B34,'DATA (hide)'!$A$4:$Y$30,14,FALSE) -> 350 | M34: =VLOOKUP(B34,'DATA (hide)'!$A$4:$Y$30,12,FALSE)&"-"&VLOOKUP(B34,'DATA (hide)'!$A$4:$Y$30,13,FALSE) -> 204-369 | N34: =VLOOKUP(B34,'DATA (hide)'!$A$4:$Y$30,15,FALSE) -> 0.99 | O34: =VLOOKUP(B34,'DATA (hide)'!$A$4:$Y$30,18,FALSE) -> 0.9785 | P34: =VLOOKUP(B34,'DATA (hide)'!$A$4:$Y$30,16,FALSE)&"-"&VLOOKUP(B34,'DATA (hide)'!$A$4:$Y$30,17,FALSE) -> 95-99 | V34: #5 | W34: (Select Crop) | X34: =VLOOKUP(W34,'DATA (hide)'!$A$4:$Y$30,2,FALSE) -> 0 | Y34: =VLOOKUP(W34,'DATA (hide)'!$A$4:$Y$30,3,FALSE) -> Bu | Z34: =VLOOKUP(W34,'DATA (hide)'!$A$4:$Y$30,4,FALSE) -> 1 | AA34: =AB34*(X34/Z34) -> 0 | AB34: =IF(AG34=0,0,ROUND(((AD34*AG34)/(AI34*AJ34))/10.4,1)) -> 0 | AC34: =SUM(AB34/Z34) -> 0 | AD34: =VLOOKUP(W34,'DATA (hide)'!$A$4:$Y$30,10,FALSE) -> 0 | AE34: =VLOOKUP(W34,'DATA (hide)'!$A$4:$Y$30,8,FALSE)&"-"&VLOOKUP(W34,'DATA (hide)'!$A$4:$Y$30,9,FALSE) -> 0-0 | AF34: =ROUND(AD34*10.7639,0) -> 0 | AG34: =VLOOKUP(W34,'DATA (hide)'!$A$4:$Y$30,14,FALSE) -> 0 | AH34: =VLOOKUP(W34,'DATA (hide)'!$A$4:$Y$30,12,FALSE)&"-"&VLOOKUP(W34,'DATA (hide)'!$A$4:$Y$30,13,FALSE) -> 0-0 | AI34: =VLOOKUP(W34,'DATA (hide)'!$A$4:$Y$30,15,FALSE) -> 0 | AJ34: =VLOOKUP(W34,'DATA (hide)'!$A$4:$Y$30,18,FALSE) -> 0 | AK34: =VLOOKUP(W34,'DATA (hide)'!$A$4:$Y$30,16,FALSE)&"-"&VLOOKUP(W34,'DATA (hide)'!$A$4:$Y$30,17,FALSE) -> 0-0
B36: (enter variety) | C36: Acres | D36: 80 | F36: Row Spacing (inches) | J36: Seed per 100ft. Row (grams) | K36: =ROUND((G34*F37)/11.5,1) -> 936488.7 | M36: Seeds per acre | N36: =IF(I34=0,0,(I34*43560)/(N34*O34)) -> 1393970363 | W36: (enter variety) | X36: Acres | Y36: 0 | AA36: Row Spacing (inches) | AE36: Seed per 100ft. Row (grams) | AF36: =ROUND((AB34*AA37)/11.5,1) -> 0 | AH36: Seeds per acre | AI36: =IF(AD34=0,0,(AD34*43560)/(AI34*AJ34)) -> 0
C37: Total Cost | D37: =SUM(D36*F34) -> 269240.5 | F37: 10 | J37: Seeds per ft. row | K37: =IF(L34=0,0,ROUND(((K36/100)*1000)/L34,1)) -> 26756.8 | M37: Seeds per pound | N37: =IF(L34=0,0,ROUND((1000*453.592)/L34,0)) -> 1296 | X37: Total Cost | Y37: =SUM(Y36*AA34) -> 0 | AA37: 10 | AE37: Seeds per ft. row | AF37: =IF(AG34=0,0,ROUND(((AF36/100)*1000)/AG34,1)) -> 0 | AH37: Seeds per pound | AI37: =IF(AG34=0,0,ROUND((1000*453.592)/AG34,0)) -> 0
A40: #6 | B40: (Select Crop) | C40: =VLOOKUP(B40,'DATA (hide)'!$A$4:$Y$30,2,FALSE) -> 0 | D40: =VLOOKUP(B40,'DATA (hide)'!$A$4:$Y$30,3,FALSE) -> Bu | E40: =VLOOKUP(B40,'DATA (hide)'!$A$4:$Y$30,4,FALSE) -> 1 | F40: =G40*(C40/E40) -> 0 | G40: =IF(L40=0,0,ROUND(((I40*L40)/(N40*O40))/10.4,1)) -> 0 | H40: =SUM(G40/E40) -> 0 | I40: =VLOOKUP(B40,'DATA (hide)'!$A$4:$Y$30,10,FALSE) -> 0 | J40: =VLOOKUP(B40,'DATA (hide)'!$A$4:$Y$30,8,FALSE)&"-"&VLOOKUP(B40,'DATA (hide)'!$A$4:$Y$30,9,FALSE) -> 0-0 | K40: =ROUND(I40*10.7639,0) -> 0 | L40: =VLOOKUP(B40,'DATA (hide)'!$A$4:$Y$30,14,FALSE) -> 0 | M40: =VLOOKUP(B40,'DATA (hide)'!$A$4:$Y$30,12,FALSE)&"-"&VLOOKUP(B40,'DATA (hide)'!$A$4:$Y$30,13,FALSE) -> 0-0 | N40: =VLOOKUP(B40,'DATA (hide)'!$A$4:$Y$30,15,FALSE) -> 0 | O40: =VLOOKUP(B40,'DATA (hide)'!$A$4:$Y$30,18,FALSE) -> 0 | P40: =VLOOKUP(B40,'DATA (hide)'!$A$4:$Y$30,16,FALSE)&"-"&VLOOKUP(B40,'DATA (hide)'!$A$4:$Y$30,17,FALSE) -> 0-0 | V40: #6 | W40: (Select Crop) | X40: =VLOOKUP(W40,'DATA (hide)'!$A$4:$Y$30,2,FALSE) -> 0 | Y40: =VLOOKUP(W40,'DATA (hide)'!$A$4:$Y$30,3,FALSE) -> Bu | Z40: =VLOOKUP(W40,'DATA (hide)'!$A$4:$Y$30,4,FALSE) -> 1 | AA40: =AB40*(X40/Z40) -> 0 | AB40: =IF(AG40=0,0,ROUND(((AD40*AG40)/(AI40*AJ40))/10.4,1)) -> 0 | AC40: =SUM(AB40/Z40) -> 0 | AD40: =VLOOKUP(W40,'DATA (hide)'!$A$4:$Y$30,10,FALSE) -> 0 | AE40: =VLOOKUP(W40,'DATA (hide)'!$A$4:$Y$30,8,FALSE)&"-"&VLOOKUP(W40,'DATA (hide)'!$A$4:$Y$30,9,FALSE) -> 0-0 | AF40: =ROUND(AD40*10.7639,0) -> 0 | AG40: =VLOOKUP(W40,'DATA (hide)'!$A$4:$Y$30,14,FALSE) -> 0 | AH40: =VLOOKUP(W40,'DATA (hide)'!$A$4:$Y$30,12,FALSE)&"-"&VLOOKUP(W40,'DATA (hide)'!$A$4:$Y$30,13,FALSE) -> 0-0 | AI40: =VLOOKUP(W40,'DATA (hide)'!$A$4:$Y$30,15,FALSE) -> 0 | AJ40: =VLOOKUP(W40,'DATA (hide)'!$A$4:$Y$30,18,FALSE) -> 0 | AK40: =VLOOKUP(W40,'DATA (hide)'!$A$4:$Y$30,16,FALSE)&"-"&VLOOKUP(W40,'DATA (hide)'!$A$4:$Y$30,17,FALSE) -> 0-0
B42: (enter variety) | C42: Acres | D42: 0 | F42: Row Spacing (inches) | J42: Seed per 100ft. Row (grams) | K42: =ROUND((G40*F43)/11.5,1) -> 0 | M42: Seeds per acre | N42: =IF(I40=0,0,(I40*43560)/(N40*O40)) -> 0 | W42: (enter variety) | X42: Acres | Y42: 0 | AA42: Row Spacing (inches) | AE42: Seed per 100ft. Row (grams) | AF42: =ROUND((AB40*AA43)/11.5,1) -> 0 | AH42: Seeds per acre | AI42: =IF(AD40=0,0,(AD40*43560)/(AI40*AJ40)) -> 0
C43: Total Cost | D43: =SUM(D42*F40) -> 0 | F43: 10 | J43: Seeds per ft. row | K43: =IF(L40=0,0,ROUND(((K42/100)*1000)/L40,1)) -> 0 | M43: Seeds per pound | N43: =IF(L40=0,0,ROUND((1000*453.592)/L40,0)) -> 0 | X43: Total Cost | Y43: =SUM(Y42*AA40) -> 0 | AA43: 10 | AE43: Seeds per ft. row | AF43: =IF(AG40=0,0,ROUND(((AF42/100)*1000)/AG40,1)) -> 0 | AH43: Seeds per pound | AI43: =IF(AG40=0,0,ROUND((1000*453.592)/AG40,0)) -> 0
C46: Total Acres | D46: =D42+D36+D30+D24+D18+D12 -> 640
C47: Total Seed Cost | D47: =ROUND(D43+D37+D31+D25+D19+D13,0) -> 528091
C48: Average Seed Cost per Acre | D48: =IF(D46=0,0,D47/D46) -> 825.1421875
A50: Note: This budget is only a guide and is not intended as an in-depth study of seeding rates. Interpretation and use of this information is the responsibility of the user. If you need help with a budget, contact your nearest ARD and MASC Service Centre location.
A53: Created and maintained by | P53: December, 2021
A54: For more information, contact your nearest
A55: Roy Arnott | D55: Darren Bond | P55: D.V. thanks for the idea!
A56: Farm Management Specialist | D56: Farm Management Specialist

Sheet Small Grains
A2: . . . . . . . . . . . . . . . . . . . . . . . . . . . . . . . . . . . . . . . . . . . . . . . . . . . . . . . . . . . . . . . .
A3: Small Grains - Seeding Rate & Cost Calculator | K3: Printed: | L3: =TODAY() -> 2025-05-13
D5: *** Enter changes to BLUE values only *** | L5: Version 1.0
G7: Seed | H7: 1,000 Seed | I7: Seed Survival1 | J7: Target Plant Stand Population | L7: Row
B8: Wheat - Hard Red Spring | D8: Price | F8: Pounds | G8: Germ | H8: Wt. (grams) | I8: Expected % | J8: Plants/ft.2 | K8: Plants/m2 | L8: Spacing | R8: (Select Crop)
C9: Acres | D9: ="per "&E10 -> per Bu | E9: unit | F9: ="per "&E10 -> per Bu | G9: % | H9: ="(Range "&VLOOKUP(B8,'DATA (hide)'!$A$4:$Y$30,12,FALSE)&"-"&VLOOKUP(B8,'DATA (hide)'!$A$4:$Y$30,13,FALSE)&")" -> (Range 31-38) | I9: ="(Range "&VLOOKUP(B8,'DATA (hide)'!$A$4:$Y$30,16,FALSE)&"-"&VLOOKUP(B8,'DATA (hide)'!$A$4:$Y$30,17,FALSE)&"%)" -> (Range 85-90%) | J9: ="(Range "&VLOOKUP(B8,'DATA (hide)'!$A$4:$Y$30,8,FALSE)&"-"&VLOOKUP(B8,'DATA (hide)'!$A$4:$Y$30,9,FALSE)&")" -> (Range 23-28) | K9: ="(Range "&ROUND(VLOOKUP(B8,'DATA (hide)'!$A$4:$Y$30,8,FALSE)*10.7639,0)&"-"&ROUND(VLOOKUP(B8,'DATA (hide)'!$A$4:$Y$30,9,FALSE)*10.7639,0)&")" -> (Range 248-301) | L9: (inches)
B10: Enter Variety Name Here | C10: 160 | D10: =VLOOKUP(B8,'DATA (hide)'!$A$4:$Y$30,2,FALSE) -> 17 | E10: =VLOOKUP(B8,'DATA (hide)'!$A$4:$Y$30,3,FALSE) -> Bu | F10: =VLOOKUP(B8,'DATA (hide)'!$A$4:$Y$30,4,FALSE) -> 60 | G10: =VLOOKUP(B8,'DATA (hide)'!$A$4:$Y$30,15,FALSE) -> 0.95 | H10: =VLOOKUP(B8,'DATA (hide)'!$A$4:$Y$30,14,FALSE) -> 36 | I10: =VLOOKUP(B8,'DATA (hide)'!$A$4:$Y$30,18,FALSE) -> 0.85 | J10: =VLOOKUP(B8,'DATA (hide)'!$A$4:$Y$30,10,FALSE) -> 28 | K10: =ROUND(J10*10.7639,0) -> 301 | L10: =VLOOKUP(B8,'DATA (hide)'!$A$4:$Y$30,19,FALSE) -> 10 | R10: Enter Variety Name Here | S10: 0 | T10: =VLOOKUP(R8,'DATA (hide)'!$A$4:$Y$30,2,FALSE) -> 0 | U10: =VLOOKUP(R8,'DATA (hide)'!$A$4:$Y$30,3,FALSE) -> Bu | V10: =VLOOKUP(R8,'DATA (hide)'!$A$4:$Y$30,4,FALSE) -> 1 | W10: =VLOOKUP(R8,'DATA (hide)'!$A$4:$Y$30,15,FALSE) -> 0 | X10: =VLOOKUP(R8,'DATA (hide)'!$A$4:$Y$30,14,FALSE) -> 0 | Y10: =VLOOKUP(R8,'DATA (hide)'!$A$4:$Y$30,18,FALSE) -> 0 | Z10: =VLOOKUP(R8,'DATA (hide)'!$A$4:$Y$30,10,FALSE) -> 0 | AB10: =VLOOKUP(R8,'DATA (hide)'!$A$4:$Y$30,19,FALSE) -> 10
C12: Seeding | D12: Seeding Rate | F12: =E10&" of" -> Bu of | G12: Seed Cost | I12: Seeds | J12: Seeds | K12: Seeds | L12: Seed per
C13: Rate | F13: Seed | I13: per | J13: per | K13: per | L13: 100ft. Row
C14: (lb./acre) | D14: ="("&E10&"/ac)" -> (Bu/ac) | E14: ="(acres/"&E10&")" -> (acres/Bu) | F14: Required | G14: $/acre | H14: Total $ | I14: Pound | J14: Sq. Foot | K14: Foot Row | L14: (grams)
C15: =IF(H10=0,0,ROUND(((J10*H10)/(G10*I10))/10.4,1)) -> 120 | D15: =SUM(C15/F10) -> 2 | E15: =IF(C15=0,0,SUM(F10/C15)) -> 0.5 | F15: =C10*D15 -> 320 | G15: =C15*(D10/F10) -> 34 | H15: =SUM(C10*G15) -> 5440 | I15: =IF(H10=0,0,ROUND((1000*453.592)/H10,0)) -> 12600 | J15: =IF(J10=0,0,(J10)/(G10*I10)) -> 34.6749226 | K15: =IF(H10=0,0,ROUND(((L15/100)*1000)/H10,1)) -> 29 | L15: =ROUND((C15*L10)/11.5,1) -> 104.3
B17: 1 Seed/Seedling Survival % can be impacted by seed quality, seed placed fertilizer, insect damage, and frost damage.
C19: Risk & Sensitivity Analysis (Stess Test) | L19: 0.02
B20: Seed Survival %1 | C20: =IF($I$10=0%,0%,D20-$L$19) -> 0.75 | D20: =IF($I$10=0%,0%,E20-$L$19) -> 0.77 | E20: 0.79 | F20: 0.81 | G20: 0.83 | H20: =I10 -> 0.85 | I20: =IF($I$10=0%,0%,IF(H20+$L$19>100%,100%,H20+$L$19)) -> 0.87 | J20: =IF($I$10=0%,0%,IF(I20+$L$19>100%,100%,I20+$L$19)) -> 0.89 | K20: 0.91 | L20: 0.93
B21: Seeding Rate (lbs/acre) | C21: =IF($H$10=0,0,ROUND((($J$10*$H$10)/($G$10*C20))/10.4,1)) -> 136 | D21: 132.5 | E21: =IF($H$10=0,0,ROUND((($J$10*$H$10)/($G$10*E20))/10.4,1)) -> 129.1 | F21: =IF($H$10=0,0,ROUND((($J$10*$H$10)/($G$10*F20))/10.4,1)) -> 126 | G21: 122.9 | H21: 120 | I21: 117.3 | J21: 114.6 | K21: 112.1 | L21: 109.7
B22: Seeding Rate (seed/sq.ft) | C22: =IF($J$10=0,0,($J$10)/($G$10*C20)) -> 39.29824561 | D22: 38.27751196 | E22: 37.30846103 | F22: 36.38726446 | G22: 35.5104629 | H22: =IF($J$10=0,0,($J$10)/($G$10*H20)) -> 34.6749226 | I22: 33.87779794 | J22: 33.11649911 | K22: 32.38866397 | L22: 31.69213356
B23: Seed Cost ($/acre) | C23: =C21*($D$10/$F$10) -> 38.53333333 | D23: 37.54166667 | E23: =E21*($D$10/$F$10) -> 36.57833333 | F23: =F21*($D$10/$F$10) -> 35.7 | G23: 34.82166667 | H23: 34 | I23: 33.235 | J23: 32.47 | K23: 31.76166667 | L23: 31.08166667
A26: Note: This budget is only a guide and is not intended as an in-depth study of seeding rates. Interpretation and use of this information is the responsibility of the user. If you need help with a budget, contact a Farm Management Specialist.
L28: May 2025

Sheet Speciality Crop
A2: . . . . . . . . . . . . . . . . . . . . . . . . . . . . . . . . . . . . . . . . . . . . . . . . . . . . . . . . . . . . . . . . . . . . .
A3: Speciality Crop - Seeding Rate & Cost Calculator | K3: Printed: | L3: =TODAY() -> 2025-05-13
D5: *** Enter changes to BLUE values only *** | L5: Version 1.0
G7: Seed | H7: 1,000 Seed | I7: Seed Survival1 | J7: Target Plant Stand Population | L7: Row | W7: Seed | X7: 1,000 Seed | Y7: Seed Survival | Z7: Target Plant Stand Population | AB7: Row
B8: Soybeans | D8: Price | F8: Seeds | G8: Germ | H8: Wt. (grams) | I8: Expected % | J8: Plants/Acre | L8: Spacing | R8: (Select Crop - Other) | T8: Price | V8: Seeds | W8: Germ | X8: Wt. (grams) | Y8: Expected % | Z8: Plants/Acre | AB8: Spacing
C9: Acres | D9: ="per "&E10 -> per Unit | E9: unit | F9: ="per "&E10 -> per Unit | G9: % | H9: ="(Range "&VLOOKUP(B8,'DATA (hide)'!$A$4:$Y$30,12,FALSE)&"-"&VLOOKUP(B8,'DATA (hide)'!$A$4:$Y$30,13,FALSE)&")" -> (Range 100-200) | I9: ="(Range "&VLOOKUP(B8,'DATA (hide)'!$A$4:$Y$30,16,FALSE)&"-"&VLOOKUP(B8,'DATA (hide)'!$A$4:$Y$30,17,FALSE)&"%)" -> (Range 75-80%) | J9: ="(Range "&TEXT(VLOOKUP(B8,'DATA (hide)'!$A$4:$Y$30,8,FALSE),"#,###")&"-"&TEXT(VLOOKUP(B8,'DATA (hide)'!$A$4:$Y$30,9,FALSE),"#,###")&")" -> (Range 150,000-200,000) | L9: (inches) | S9: Acres | T9: ="per "&U10 -> per Bag | U9: unit | V9: ="per "&U10 -> per Bag | W9: % | X9: ="(Range "&VLOOKUP(R8,'DATA (hide)'!$A$4:$Y$30,12,FALSE)&"-"&VLOOKUP(R8,'DATA (hide)'!$A$4:$Y$30,13,FALSE)&")" -> (Range 0-0) | Y9: ="(Range "&VLOOKUP(R8,'DATA (hide)'!$A$4:$Y$30,16,FALSE)&"-"&VLOOKUP(R8,'DATA (hide)'!$A$4:$Y$30,17,FALSE)&"%)" -> (Range 0-0%) | Z9: ="(Range "&TEXT(VLOOKUP(R8,'DATA (hide)'!$A$4:$Y$30,8,FALSE),"#,###")&"-"&TEXT(VLOOKUP(R8,'DATA (hide)'!$A$4:$Y$30,9,FALSE),"#,###")&")" -> (Range -) | AB9: (inches)
B10: Enter Variety Name Here | C10: 160 | D10: =VLOOKUP(B8,'DATA (hide)'!$A$4:$Y$30,2,FALSE) -> 62.94 | E10: =VLOOKUP(B8,'DATA (hide)'!$A$4:$Y$30,3,FALSE) -> Unit | F10: =VLOOKUP(B8,'DATA (hide)'!$A$4:$Y$30,4,FALSE) -> 140000 | G10: =VLOOKUP(B8,'DATA (hide)'!$A$4:$Y$30,15,FALSE) -> 0.9 | H10: =VLOOKUP(B8,'DATA (hide)'!$A$4:$Y$30,14,FALSE) -> 150 | I10: =VLOOKUP(B8,'DATA (hide)'!$A$4:$Y$30,18,FALSE) -> 0.9 | J10: =VLOOKUP(B8,'DATA (hide)'!$A$4:$Y$30,10,FALSE) -> 162000 | L10: =VLOOKUP(B8,'DATA (hide)'!$A$4:$Y$30,19,FALSE) -> 10 | R10: Enter Variety Name Here | S10: 0 | T10: =VLOOKUP(R8,'DATA (hide)'!$A$4:$Y$30,2,FALSE) -> 0 | U10: =VLOOKUP(R8,'DATA (hide)'!$A$4:$Y$30,3,FALSE) -> Bag | V10: =VLOOKUP(R8,'DATA (hide)'!$A$4:$Y$30,4,FALSE) -> 1 | W10: =VLOOKUP(R8,'DATA (hide)'!$A$4:$Y$30,15,FALSE) -> 0 | X10: =VLOOKUP(R8,'DATA (hide)'!$A$4:$Y$30,14,FALSE) -> 0 | Y10: =VLOOKUP(R8,'DATA (hide)'!$A$4:$Y$30,18,FALSE) -> 0 | Z10: =VLOOKUP(R8,'DATA (hide)'!$A$4:$Y$30,10,FALSE) -> 0 | AB10: =VLOOKUP(R8,'DATA (hide)'!$A$4:$Y$30,19,FALSE) -> 10
C12: Seeding | D12: Seeding Rate | F12: =E10&" of" -> Unit of | G12: Seed Cost | I12: Seeds | J12: Seeds | K12: Seeds | L12: Seed per
C13: Rate | F13: Seed | I13: per | J13: per | K13: per | L13: 100ft. Row
C14: (lb./acre) | D14: ="("&E10&"/ac)" -> (Unit/ac) | E14: ="(acres/"&E10&")" -> (acres/Unit) | F14: Required | G14: $/acre | H14: Total $ | I14: Pound | J14: Acre | K14: Foot Row | L14: (grams)
C15: =IF(H10=0,0,ROUND(((J10/1000)*(H10/453.6)/(G10*I10)),2)) -> 66.14 | D15: =IF(C15=0,0,SUM(C15/((H10/453.592)*(F10/1000)))) -> 1.428598804 | E15: =IF(H10=0,0,SUM(F10/J15)) -> 0.7 | F15: =C10*D15 -> 228.5758086 | G15: =D15*D10 -> 89.91600871 | H15: =SUM(C10*G15) -> 14386.56139 | I15: =IF(H10=0,0,ROUND((1000*453.592)/H10,0)) -> 3024 | J15: =IF(H10=0,0,ROUND((J10)/(G10*I10),-3)) -> 200000 | K15: =IF(H10=0,0,ROUND(((L15/100)*1000)/H10,1)) -> 3.8 | L15: =ROUND((C15*L10)/11.5,1) -> 57.5
B17: 1 Seed/Seedling Survival % can be impacted by seed quality, seed placed fertilizer, insect damage, and frost damage.
C19: Risk & Sensitivity Analysis (Stess Test) | L19: 0.02
B20: Seed Survival %1 | C20: =IF($I$10=0%,0%,D20-$L$19) -> 0.8 | D20: =IF($I$10=0%,0%,E20-$L$19) -> 0.82 | E20: 0.84 | F20: 0.86 | G20: 0.88 | H20: =I10 -> 0.9 | I20: =IF($I$10=0%,0%,IF(H20+$L$19>100%,100%,H20+$L$19)) -> 0.92 | J20: =IF($I$10=0%,0%,IF(I20+$L$19>100%,100%,I20+$L$19)) -> 0.94 | K20: 0.96 | L20: 0.98
B21: Seeding Rate (lbs/acre) | C21: =IF($H$10=0,0,ROUND((($J$10/1000)*($H$10/453.6)/($G$10*C20)),2)) -> 74.4 | D21: =IF($H$10=0,0,ROUND((($J$10/1000)*($H$10/453.6)/($G$10*D20)),2)) -> 72.59 | E21: 70.86 | F21: 69.21 | G21: 67.64 | H21: 66.14 | I21: 64.7 | J21: 63.32 | K21: 62 | L21: 60.74
B22: ="Seeding Rate ("&E10&"/ac)" -> Seeding Rate (Unit/ac) | C22: =IF($C$15=0,0,SUM(C21/(($H$10/453.6)*($F$10/1000)))) -> 1.60704 | D22: =IF($C$15=0,0,SUM(D21/(($H$10/453.6)*($F$10/1000)))) -> 1.567944 | E22: 1.530576 | F22: 1.494936 | G22: 1.461024 | H22: 1.428624 | I22: 1.39752 | J22: 1.367712 | K22: 1.3392 | L22: 1.311984
B23: Seeding Rate (seeds/ac) | C23: =IF($H$10=0,0,ROUND(($J$10)/($G$10*C20),-3)) -> 225000 | D23: 220000 | E23: 214000 | F23: 209000 | G23: 205000 | H23: =IF($H$10=0,0,ROUND(($J$10)/($G$10*H20),-3)) -> 200000 | I23: =IF($H$10=0,0,ROUND(($J$10)/($G$10*I20),-3)) -> 196000 | J23: 191000 | K23: 188000 | L23: 184000
B24: Seed Cost ($/acre) | C24: =C22*$D$10 -> 101.1470976 | D24: =D22*$D$10 -> 98.68639536 | E24: 96.33445344 | F24: 94.09127184 | G24: 91.95685056 | H24: 89.91759456 | I24: 87.9599088 | J24: 86.08379328 | K24: 84.289248 | L24: 82.57627296
A28: Note: This budget is only a guide and is not intended as an in-depth study of seeding rates. Interpretation and use of this information is the responsibility of the user. If you need help with a budget, contact a Farm Management Specialist.
L30: May 2025

Sheet DATA (hide) (hidden)
B1: Seed and Treatment | E1: Seed | F1: Seeding | G1: Seeding | H1: Target Plant Stand Population | L1: 1,000 Kernal Weight | O1: Seed | P1: Seed Survival (Emergence) | S1: Row | T1: Seed per | U1: Seed | V1: Seeds | W1: Seeds per pound
B2: Price | D2: Number | E2: Cost | F2: Rate | G2: Rate | H2: low range | I2: high range | J2: Optimal | K2: Optimal | L2: low range | M2: high range | N2: Actual | O2: Germination | P2: low range | Q2: high range | R2: Expected | S2: Spacing | T2: 100 ft. row | U2: /ft. of | V2: per | W2: low | X2: high
A3: Crop | B3: per Unit | C3: unit | D3: per unit | E3: ($/acre) | F3: (lb./acre) | G3: (units/ac) | H3: per ft.2 | I3: per ft.2 | J3: per ft.2 | K3: per m2 | L3: (grams) | M3: (grams) | N3: (grams) | O3: % | P3: % | Q3: % | R3: % | S3: (inches) | T3: (grams) | U3: row | V3: acre | W3: range | X3: range | Y3: Actual
A4: (Select Crop) | B4: 0 | C4: Bu | D4: 1 | E4: =F4*(B4/D4) -> 0 | F4: =IF(N4=0,0,ROUND(((J4*N4)/(O4*R4))/10.4,2)) -> 0 | G4: =SUM(F4/D4) -> 0 | H4: 0 | I4: 0 | J4: 0 | K4: =ROUND(J4*10.7639,0) -> 0 | L4: 0 | M4: 0 | N4: 0 | O4: 0 | P4: 0 | Q4: 0 | R4: 0 | S4: 10 | T4: =ROUND((F4*S4)/11.5,1) -> 0 | U4: =IF(N4=0,0,ROUND(((T4/100)*1000)/N4,1)) -> 0 | V4: =IF(J4=0,0,(J4*43560)/(O4*R4)) -> 0 | W4: =IF(M4=0,0,ROUND((1000*453.592)/M4,0)) -> 0 | X4: =IF(L4=0,0,ROUND((1000*453.592)/L4,0)) -> 0 | Y4: =IF(N4=0,0,ROUND((1000*453.592)/N4,0)) -> 0
A5: Canola | B5: 825 | C5: Bag | D5: 50 | E5: =F5*(B5/D5) -> 82.665 | F5: =ROUND(((J5*N5)/(O5*R5))/10.4,2) -> 5.01 | G5: =SUM(F5/D5) -> 0.1002 | H5: 3 | I5: 12 | J5: 7.5 | K5: 81 | L5: 3 | M5: 7 | N5: 4.95 | O5: 0.95 | P5: 40 | Q5: 80 | R5: 0.75 | S5: 10 | T5: =ROUND((F5*S5)/11.5,1) -> 4.4 | U5: =ROUND(((T5/100)*1000)/N5,1) -> 8.9 | V5: =(J5*43560)/(O5*R5) -> 458526.3158 | W5: =ROUND((1000*453.592)/M5,0) -> 64799 | X5: =ROUND((1000*453.592)/L5,0) -> 151197 | Y5: =ROUND((1000*453.592)/N5,0) -> 91635
A6: Wheat - Hard Red Spring | B6: 17 | C6: Bu | D6: 60 | E6: =F6*(B6/D6) -> 34.0085 | F6: 120.03 | G6: 2.0005 | H6: 23 | I6: 28 | J6: 28 | K6: 301 | L6: 31 | M6: 38 | N6: 36 | O6: 0.95 | P6: 85 | Q6: 90 | R6: 0.85 | S6: 10 | T6: 104.4 | U6: 29 | V6: 1510439.628 | W6: 11937 | X6: 14632 | Y6: 12600
A7: Wheat - Northern Hard Red | B7: 17 | C7: Bu | D7: 60 | E7: 34.0085 | F7: 120.03 | G7: 2.0005 | H7: 23 | I7: 28 | J7: 28 | K7: 301 | L7: 31 | M7: 38 | N7: 36 | O7: 0.95 | P7: 85 | Q7: 90 | R7: 0.85 | S7: 10 | T7: 104.4 | U7: 29 | V7: 1510439.628 | W7: 11937 | X7: 14632 | Y7: 12600
A8: Wheat - Prairie Spring | B8: 17 | C8: Bu | D8: 60 | E8: 42.51133333 | F8: 150.04 | G8: 2.500666667 | H8: 23 | I8: 28 | J8: 28 | K8: 301 | L8: 39 | M8: 50 | N8: 45 | O8: 0.95 | P8: 85 | Q8: 90 | R8: 0.85 | S8: 10 | T8: 130.5 | U8: 29 | V8: 1510439.628 | W8: 9072 | X8: 11631 | Y8: 10080
A9: Wheat - Winter | B9: 17 | C9: Bu | D9: 60 | E9: 37.44816667 | F9: 132.17 | G9: 2.202833333 | H9: 30 | I9: 35 | J9: 30 | K9: 323 | L9: 30 | M9: 40 | N9: 37 | O9: 0.95 | P9: 85 | Q9: 90 | R9: 0.85 | S9: 10 | T9: 114.9 | U9: 31.1 | V9: 1618328.173 | W9: 11340 | X9: 15120 | Y9: 12259
A10: Wheat - Special Purpose | B10: 17 | C10: Bu | D10: 60 | E10: 34.0085 | F10: 120.03 | G10: 2.0005 | H10: 23 | I10: 28 | J10: 28 | K10: 301 | L10: 31 | M10: 38 | N10: 36 | O10: 0.95 | P10: 85 | Q10: 90 | R10: 0.85 | S10: 10 | T10: 104.4 | U10: 29 | V10: 1510439.628 | W10: 11937 | X10: 14632 | Y10: 12600
A11: Oats | B11: 10 | C11: Bu | D11: 32 | E11: 25.05625 | F11: 80.18 | G11: 2.505625 | H11: 20 | I11: 30 | J11: 23 | K11: 248 | L11: 30 | M11: 45 | N11: 31 | O11: 0.95 | P11: 85 | Q11: 90 | R11: 0.9 | S11: 10 | T11: 69.7 | U11: 22.5 | V11: 1171789.474 | W11: 10080 | X11: 15120 | Y11: 14632
A12: Barley | B12: 10 | C12: Bu | D12: 48 | E12: =F12*(B12/D12) -> 19.9375 | F12: =ROUND(((J12*N12)/(O12*R12))/10.4,2) -> 95.7 | G12: =SUM(F12/D12) -> 1.99375 | H12: 22 | I12: 25 | J12: 23 | K12: =ROUND(J12*10.7639,0) -> 248 | L12: 30 | M12: 45 | N12: 37 | O12: 0.95 | P12: 85 | Q12: 90 | R12: 0.9 | S12: 10 | T12: =ROUND((F12*S12)/11.5,1) -> 83.2 | U12: =ROUND(((T12/100)*1000)/N12,1) -> 22.5 | V12: =(J12*43560)/(O12*R12) -> 1171789.474 | W12: =ROUND((1000*453.592)/M12,0) -> 10080 | X12: =ROUND((1000*453.592)/L12,0) -> 15120 | Y12: =ROUND((1000*453.592)/N12,0) -> 12259
A13: Peas | B13: 28.33 | C13: Bu | D13: 60 | E13: 93.45594833 | F13: 197.93 | G13: 3.298833333 | H13: 7 | I13: 9 | J13: 8 | K13: 86 | L13: 125 | M13: 300 | N13: 220 | O13: 0.95 | P13: 85 | Q13: 90 | R13: 0.9 | S13: 10 | T13: 172.1 | U13: 7.8 | V13: 407578.9474 | W13: 1512 | X13: 3629 | Y13: 2062
A14: Flaxseed | B14: 54 | C14: Bu | D14: 56 | E14: 56.39142857 | F14: 58.48 | G14: 1.044285714 | H14: 28 | I14: 48 | J14: 40 | K14: 431 | L14: 5 | M14: 6.5 | N14: 6.5 | O14: 0.95 | P14: 40 | Q14: 75 | R14: 0.45 | S14: 10 | T14: 50.9 | U14: 78.3 | V14: 4075789.474 | W14: 69783 | X14: 90718 | Y14: 69783
A15: Hempseed | B15: 2.35 | C15: Lb | D15: 1 | E15: =F15*(B15/D15) -> 59.8075 | F15: =ROUND(((J15*N15)/(O15*R15))/10.4,2) -> 25.45 | G15: =SUM(F15/D15) -> 25.45 | H15: 10 | I15: 12 | J15: 11 | K15: =ROUND(J15*10.7639,0) -> 118 | L15: 13.5 | M15: 21.5 | N15: 16 | O15: 0.95 | P15: 70 | Q15: 75 | R15: 0.7 | S15: 10 | T15: =ROUND((F15*S15)/11.5,1) -> 22.1 | U15: =ROUND(((T15/100)*1000)/N15,1) -> 13.8 | V15: =(J15*43560)/(O15*R15) -> 720541.3534 | W15: =ROUND((1000*453.592)/M15,0) -> 21097 | X15: =ROUND((1000*453.592)/L15,0) -> 33599 | Y15: =ROUND((1000*453.592)/N15,0) -> 28350
A16: Fababean | B16: 0.3 | C16: Lb | D16: 1 | E16: =F16*(B16/D16) -> 53.982 | F16: =ROUND(((J16*N16)/(O16*R16))/10.4,2) -> 179.94 | G16: =SUM(F16/D16) -> 179.94 | H16: 4 | I16: 4.3 | J16: 4 | K16: =ROUND(J16*10.7639,0) -> 43 | L16: 350 | M16: 425 | N16: 400 | O16: 0.95 | P16: 85 | Q16: 90 | R16: 0.9 | S16: 10 | T16: =ROUND((F16*S16)/11.5,1) -> 156.5 | U16: =ROUND(((T16/100)*1000)/N16,1) -> 3.9 | V16: =(J16*43560)/(O16*R16) -> 203789.4737 | W16: =ROUND((1000*453.592)/M16,0) -> 1067 | X16: =ROUND((1000*453.592)/L16,0) -> 1296 | Y16: =ROUND((1000*453.592)/N16,0) -> 1134
A17: Buckwheat | B17: 33 | C17: Bu | D17: 48 | E17: =F17*(B17/D17) -> 32.470625 | F17: =ROUND(((J17*N17)/(O17*R17))/10.4,2) -> 47.23 | G17: =SUM(F17/D17) -> 0.9839583333 | H17: 13 | I17: 17 | J17: 14 | K17: =ROUND(J17*10.7639,0) -> 151 | L17: 30 | M17: 30 | N17: 30 | O17: 0.95 | P17: 85 | Q17: 90 | R17: 0.9 | S17: 10 | T17: =ROUND((F17*S17)/11.5,1) -> 41.1 | U17: =ROUND(((T17/100)*1000)/N17,1) -> 13.7 | V17: =(J17*43560)/(O17*R17) -> 713263.1579 | W17: =ROUND((1000*453.592)/M17,0) -> 15120 | X17: =ROUND((1000*453.592)/L17,0) -> 15120 | Y17: =ROUND((1000*453.592)/N17,0) -> 15120
A18: Canaryseed | B18: 0.75 | C18: Lb | D18: 1 | E18: =F18*(B18/D18) -> 33.735 | F18: =ROUND(((J18*N18)/(O18*R18))/10.4,2) -> 44.98 | G18: =SUM(F18/D18) -> 44.98 | H18: 40 | I18: 55 | J18: 50 | K18: =ROUND(J18*10.7639,0) -> 538 | L18: 7 | M18: 10 | N18: 8 | O18: 0.95 | P18: 85 | Q18: 90 | R18: 0.9 | S18: 10 | T18: =ROUND((F18*S18)/11.5,1) -> 39.1 | U18: =ROUND(((T18/100)*1000)/N18,1) -> 48.9 | V18: =(J18*43560)/(O18*R18) -> 2547368.421 | W18: =ROUND((1000*453.592)/M18,0) -> 45359 | X18: =ROUND((1000*453.592)/L18,0) -> 64799 | Y18: =ROUND((1000*453.592)/N18,0) -> 56699
A19: Lentil | B19: 35 | C19: Bu | D19: 60 | E19: =F19*(B19/D19) -> 71.63916667 | F19: =ROUND(((J19*N19)/(O19*R19))/10.4,2) -> 122.81 | G19: =SUM(F19/D19) -> 2.046833333 | H19: 10 | I19: 14 | J19: 14 | K19: =ROUND(J19*10.7639,0) -> 151 | L19: 30 | M19: 80 | N19: 65 | O19: 0.95 | P19: 75 | Q19: 80 | R19: 0.75 | S19: 10 | T19: =ROUND((F19*S19)/11.5,1) -> 106.8 | U19: =ROUND(((T19/100)*1000)/N19,1) -> 16.4 | V19: =(J19*43560)/(O19*R19) -> 855915.7895 | W19: =ROUND((1000*453.592)/M19,0) -> 5670 | X19: =ROUND((1000*453.592)/L19,0) -> 15120 | Y19: =ROUND((1000*453.592)/N19,0) -> 6978
A20: (Select Crop - Other) | B20: 0 | C20: Bag | D20: 1 | E20: =F20*(B20/D20) -> 0 | F20: =IF(N20=0,0,ROUND(((J20*N20)/(O20*R20))/10.4,2)) -> 0 | G20: =SUM(F20/D20) -> 0 | H20: 0 | I20: 0 | J20: 0 | K20: =ROUND(J20*10.7639,0) -> 0 | L20: 0 | M20: 0 | N20: 0 | O20: 0 | P20: 0 | Q20: 0 | R20: 0 | S20: 10 | T20: =ROUND((F20*S20)/11.5,1) -> 0 | U20: =IF(N20=0,0,ROUND(((T20/100)*1000)/N20,1)) -> 0 | V20: =IF(J20=0,0,(J20*43560)/(O20*R20)) -> 0 | W20: =IF(M20=0,0,ROUND((1000*453.592)/M20,0)) -> 0 | X20: =IF(L20=0,0,ROUND((1000*453.592)/L20,0)) -> 0 | Y20: =IF(N20=0,0,ROUND((1000*453.592)/N20,0)) -> 0
A21: Fall Rye - Hybrid | B21: 98 | C21: Unit | D21: 1000000 | E21: =(B21*G21) -> 78.4020384 | F21: =ROUND(((J21/1000)*(N21/453.6)/(O21*R21)),2) -> 61.73 | G21: =SUM(F21/((N21/453.6)*(D21/1000))) -> 0.8000208 | H21: 800000 | I21: 800000 | J21: 684000 | K21: =ROUND((J21/43560)*10.7639,1) -> 169 | L21: 31.75 | M21: 40.82 | N21: 35 | O21: 0.95 | P21: 85 | Q21: 90 | R21: 0.9 | S21: 10 | T21: =ROUND((F21*S21)/11.5,1) -> 53.7 | U21: =ROUND(((T21/100)*1000)/N21,1) -> 15.3 | V21: =(J21)/(O21*R21) -> 800000 | W21: =ROUND((1000*453.592)/M21,0) -> 11112 | X21: =ROUND((1000*453.592)/L21,0) -> 14286 | Y21: =ROUND((1000*453.592)/N21,0) -> 12960
A22: Soybeans | B22: 62.94 | C22: Unit | D22: 140000 | E22: =(B22*G22) -> 89.91759456 | F22: =ROUND(((J22/1000)*(N22/453.6)/(O22*R22)),2) -> 66.14 | G22: =SUM(F22/((N22/453.6)*(D22/1000))) -> 1.428624 | H22: 150000 | I22: 200000 | J22: 162000 | K22: =ROUND((J22/43560)*10.7639,1) -> 40 | L22: 100 | M22: 200 | N22: 150 | O22: 0.9 | P22: 75 | Q22: 80 | R22: 0.9 | S22: 10 | T22: =ROUND((F22*S22)/11.5,1) -> 57.5 | U22: =ROUND(((T22/100)*1000)/N22,1) -> 3.8 | V22: =(J22)/(O22*R22) -> 200000 | W22: =ROUND((1000*453.592)/M22,0) -> 2268 | X22: =ROUND((1000*453.592)/L22,0) -> 4536 | Y22: =ROUND((1000*453.592)/N22,0) -> 3024
A23: Corn - Grain | B23: 250 | C23: Bag | D23: 80000 | E23: =(B23*G23) -> 99.9945 | F23: =ROUND(((J23/1000)*(N23/453.6)/(O23*R23)),2) -> 24.69 | G23: =SUM(F23/((N23/453.6)*(D23/1000))) -> 0.399978 | H23: 30000 | I23: 36000 | J23: 31000 | K23: =ROUND((J23/43560)*10.7639,1) -> 7.7 | L23: 204 | M23: 369 | N23: 350 | O23: 0.99 | P23: 95 | Q23: 99 | R23: 0.9785 | S23: 30 | T23: =ROUND((F23*S23)/11.5,1) -> 64.4 | U23: =ROUND(((T23/100)*1000)/N23,1) -> 1.8 | V23: =(J23)/(O23*R23) -> 32001.15617 | W23: =ROUND((1000*453.592)/M23,0) -> 1229 | X23: =ROUND((1000*453.592)/L23,0) -> 2223 | Y23: =ROUND((1000*453.592)/N23,0) -> 1296
A24: Corn - Silage | B24: 250 | C24: Bag | D24: 80000 | E24: =(B24*G24) -> 87.5205 | F24: =ROUND(((J24/1000)*(N24/453.6)/(O24*R24)),2) -> 21.61 | G24: =SUM(F24/((N24/453.6)*(D24/1000))) -> 0.350082 | H24: 26000 | I24: 32000 | J24: 27000 | K24: =ROUND((J24/43560)*10.7639,1) -> 6.7 | L24: 204 | M24: 369 | N24: 350 | O24: 0.99 | P24: 95 | Q24: 99 | R24: 0.974 | S24: 30 | T24: 56.4 | U24: 1.6 | V24: =(J24)/(O24*R24) -> 28000.74669 | W24: 1229 | X24: 2223 | Y24: 1296
A25: Beans - Pinto | B25: 140 | C25: Unit | D25: 100000 | E25: =(B25*G25) -> 112.455 | F25: =ROUND(((J25/1000)*(N25/453.6)/(O25*R25)),2) -> 63.75 | G25: =SUM(F25/((N25/453.6)*(D25/1000))) -> 0.80325 | H25: 55000 | I25: 60000 | J25: 60000 | K25: =ROUND((J25/43560)*10.7639,1) -> 14.8 | L25: 320 | M25: 375 | N25: 360 | O25: 0.9 | P25: 75 | Q25: 80 | R25: 0.83 | S25: 30 | T25: 166.3 | U25: 4.6 | V25: =(J25)/(O25*R25) -> 80321.28514 | W25: 1210 | X25: 1417 | Y25: 1260
A26: Beans - White | B26: 100 | C26: Unit | D26: 100000 | E26: 109.74852 | F26: 48.39 | G26: 1.0974852 | H26: 75000 | I26: 80000 | J26: 80000 | K26: 19.8 | L26: 190 | M26: 210 | N26: 200 | O26: 0.9 | P26: 75 | Q26: 80 | R26: 0.81 | S26: 30 | T26: 126.2 | U26: 6.3 | V26: 109739.369 | W26: 2160 | X26: 2387 | Y26: 2268
A27: Beans - Black | B27: 92 | C27: Unit | D27: 100000 | E27: 114.9903216 | F27: 55.11 | G27: 1.2498948 | H27: 85000 | I27: 90000 | J27: 90000 | K27: 22.2 | L27: 190 | M27: 210 | N27: 200 | O27: 0.9 | P27: 75 | Q27: 80 | R27: 0.8 | S27: 15 | T27: 71.9 | U27: 3.6 | V27: 125000 | W27: 2160 | X27: 2387 | Y27: 2268
A28: Beans - Kidney | B28: 222 | C28: Unit | D28: 100000 | E28: 167.4836694 | F28: 88.15 | G28: 0.7544309434 | H28: 75000 | I28: 80000 | J28: 55000 | K28: 13.6 | L28: 450 | M28: 600 | N28: 530 | O28: 0.9 | P28: 75 | Q28: 80 | R28: 0.81 | S28: 30 | T28: 230 | U28: 4.3 | V28: 75445.81619 | W28: 756 | X28: 1008 | Y28: 856
A29: Sunflower Oil | B29: 470 | C29: Bag | D29: 200000 | E29: 50.029056 | F29: 3.52 | G29: 0.1064448 | H29: 19000 | I29: 22000 | J29: 20000 | K29: 4.9 | L29: 51 | M29: 90 | N29: 75 | O29: 0.99 | P29: 95 | Q29: 99 | R29: 0.95 | S29: 30 | T29: =ROUND((F29*S29)/11.5,1) -> 9.2 | U29: =ROUND(((T29/100)*1000)/N29,1) -> 1.2 | V29: 21265.28442 | W29: =ROUND((1000*453.592)/M29,0) -> 5040 | X29: =ROUND((1000*453.592)/L29,0) -> 8894 | Y29: =ROUND((1000*453.592)/N29,0) -> 6048
A30: Sunflower Confectionary | B30: 500 | C30: Bag | D30: 200000 | E30: 42.525 | F30: 3.75 | G30: 0.08505 | H30: 14000 | I30: 18000 | J30: 16000 | K30: 4 | L30: 91 | M30: 151 | N30: 100 | O30: 0.99 | P30: 95 | Q30: 99 | R30: 0.95 | S30: 30 | T30: 9.8 | U30: 1 | V30: 17012.22754 | W30: 3004 | X30: 4985 | Y30: 4536
A35: Seeding rate (lb./ac.) = ((Plants/ft.2 x TKW (g)) ÷ (germination% x seed survival rate%)) / 10.4 (conversion factor)
A36: Seed weight per 100 ft./row (g) = (seeding rate (lb./ac.) x row spacing (in.)) / 11.5 (conversion factor)
A37: Seed per foot of row = ((Seed Weight per 100 ft (g) /100) * 1000) / TKW (g)
A38: Seeds/ac = plants per acre / (germination% x seed survival%)

Sheet names (hide) (hidden)
A4: UNIT | B4: ROW | C4: CROP
A5: Lb | B5: 5.5
A6: Bu | B6: =SUM(B5+0.5) -> 6
A7: Bag | B7: 6.5
A8: Unit | B8: 7
A9: Kg | B9: 7.5
A10: Tonne | B10: 8
B11: 8.5
B12: 9
B13: 9.5
B14: 10
B15: 10.5
B16: 11
B17: 11.5
B18: 12
B19: 12.5
B20: 13
B21: 13.5
B22: 14
B23: 14.5
B24: 15
B25: 15.5
B26: 16
B27: 16.5
B28: 17
B29: 17.5
B30: 18
B31: 18.5
B32: 19
B33: 19.5
B34: 20
B35: 20.5
B36: 21
B37: 21.5
B38: =SUM(B37+0.5) -> 22
B39: 22.5
B40: 23
B41: 23.5
B42: 24
B43: 24.5
B44: 25
B45: 25.5
B46: 26
B47: 26.5
B48: 27
B49: 27.5
B50: 28
B51: 28.5
B52: 29
B53: 29.5
B54: 30
B55: 30.5
B56: 31
B57: 31.5
B58: 32
B59: 32.5
B60: 33
B61: 33.5
B62: 34
B63: 34.5
B64: 35
B65: 35.5
B66: 36

Sheet Seeding Rates DV (hide) (hidden)
G1: Emergence
A2: Crop | B2: Variety | D2: Optimal Targeted Stand | F2: Germination (%) | G2: Mortality (%) | H2: Row Spacing | I2: TKW | J2: Targeted Seeding Rate
A3: Wheat | B3: Brandon | D3: 32 | E3: plants/ft2 | F3: 99 | G3: 15 | H3: 7.5 | I3: 39.16 | J3: =((D3*I3)/((F3/100)*(1-(G3/100))))/10.4 -> 143.1875314 | K3: lbs/ac
D4: 32-34 | G4: 10-15% | J4: =SUM(J3*H3/11.5) -> 93.38317267 | K4: grams seed/100ft row
J5: =((J4/100)*1000)/I3 -> 23.84657116 | K5: seeds/ft of row
A7: Oats | B7: ORE3542 | D7: 29 | E7: plants/ft2 | F7: 99 | G7: 15 | H7: 7.5 | I7: 40.3 | J7: =((D7*I7)/((F7/100)*(1-(G7/100))))/10.4 -> 133.5412953 | K7: lbs/ac
D8: 28-30 | G8: 10-15% | J8: =SUM(J7*H7/11.5) -> 87.09214911 | K8: grams seed/100ft row
J9: =((J8/100)*1000)/I7 -> 21.61095511 | K9: seeds/ft of row
A11: Canola | B11: L233P | D11: 7 | E11: plants/ft2 | F11: 99 | G11: 25 | H11: 7.5 | I11: 4.3 | J11: =((D11*I11)/((F11/100)*(1-(G11/100))))/10.4 -> 3.897953898 | K11: lbs/ac
J12: =SUM(J11*H11/11.5) -> 2.542143846 | K12: grams seed/100ft row
J13: =((J12/100)*1000)/I11 -> 5.911962434 | K13: seeds/ft of row
D14: 7 | E14: plants/ft2 | F14: 99 | G14: 25 | H14: 15 | I14: 4.3 | J14: =((D14*I14)/((F14/100)*(1-(G14/100))))/10.4 -> 3.897953898 | K14: lbs/ac
D15: 7 to 14 | G15: 20-60% | J15: =SUM(J14*H14/11.5) -> 5.084287693 | K15: grams seed/100ft row
J16: =((J15/100)*1000)/I14 -> 11.82392487 | K16: seeds/ft of row
J18: =((D19*I19)/((F19/100)*(1-(G19/100))))/10.4 -> 47.11782573 | K18: lbs/ac | L18: **two different calcs, same number
A19: Navies | B19: T9905 | C19: 80000 | D19: =C19/43560 -> 1.836547291 | E19: plants/ft2 | F19: 90 | G19: 15 | H19: 30 | I19: =0.45*B36 -> 204.1164 | J19: =((J20*I19)/1000)/B36 -> 47.05882353 | K19: lbs/ac
D20: 85-100 | G20: 10-15% | J20: =((C19)/((F19/100)*(1-(G19/100)))) -> 104575.1634 | K20: seeds/ac
J21: 2140 | K21: seeds/lb
A22: Soybeans | B22: RR1 | C22: 160000 | D22: =C22/43560 -> 3.673094582 | E22: plants/ft2 | F22: 82 | G22: 20 | H22: 15 | I22: 111.57 | J22: =((D22*I22)/((F22/100)*(1-(G22/100))))/10.4 -> 60.0678885 | K22: lbs/ac
J23: =SUM(J22*H22/11.5) -> 78.34941979 | K23: grams seed/100ft row
J24: =((J23/100)*1000)/I22 -> 7.022445083 | K24: seeds/ft of row
J25: 4122 | K25: seeds/lb
C26: 160000 | D26: =C26/43560 -> 3.673094582 | E26: plants/ft2 | F26: 92 | G26: 20 | H26: 7.5 | I26: 111.57 | J26: =((D26*I26)/((F26/100)*(1-(G26/100))))/10.4 -> 53.53877019 | K26: lbs/ac
D27: 140-160 | G27: 10-25% | J27: =SUM(J26*H26/11.5) -> 34.91658925 | K27: grams seed/100ft row
J28: =((J27/100)*1000)/I26 -> 3.129567917 | K28: seeds/ft of row
J29: 4122 | K29: seeds/lb
A31: Seeding rate for canola = 9.6 x target plant stand x TKW = Seeding Rate / % Survivability | F31: Seeding rate (lb./ac.) = (Plants/ft.2 x TKW (g) ÷ seed survival rate) / 10.4 (conversion factor)
A32: Targeted plant stand = 7 plants/ft2 | F32: Seed weight per 100 ft./row (g) = (seeding rate (lb./ac.) x row spacing (in.)) / 11.5 (conversion factor)
A33: Emergence = 50% in cold conditions and 75% in good conditions | F33: Seed per foot of row = ((Seed Weight per 100 ft (g) /100) * 1000) / TKW (g)
F34: seeds/ac | G34: = plants per acre / (germ% x (1-mortality%))
A35: 1 AC = | B35: 43560 | C35: ft2 | F35: https://2020seedlabs.ca/1000-kernel-weight/
A36: 1 LB = | B36: 453.592 | C36: grams
A38: To find Soybean seeds/lb
B39: Weight out 100 grams of seed
B40: Count all seeds
B41: Multiply by 4.54
A42: ***For splits, count them seperatly and divide by 2 to add with the total. Then bump seeding rate!***
